Cogmind - Beta 15 @@@ ROGUE MODE // 2025.07.07 @ 10:22:07 Player: beans Result: Destroyed by 0Z-0SO(R) with Subdweller Shrapnel Launcher Performance ------------- Evolutions (0) 0 Regions Visited (2) 400 Robots Destroyed (29) 145 Value Destroyed (563) 563 Prototype IDs (0) 0 Alien Tech Used (0) 0 Bonus (0) 0 TOTAL SCORE: 1108 Bonus ------- None Cogmind --------- Core Integrity 0/250 Matter 143/300 Energy 25/250 System Corruption 0% Temperature Cool (0) Movement Core (900) Ox17 Location -10/Subcaves Parts ------- > --- POWER (1) -------- Ion Engine > --- PROPULSION (2) --- (None) > --- UTILITY (2) ------ High-capacity Storage Unit Shield Generator > --- WEAPON (2) ------- Shotgun Grenade Launcher > --- INVENTORY (20) --- Medium Matter Pod (0) Signal Interpreter Hacking Suite Assault Rifle Assault Rifle Light Assault Rifle Shotgun Light Cannon Light Cannon Grenade Launcher Grenade Launcher Peak State ------------ > --- POWER ------------ Ion Engine > --- PROPULSION ------- Light Treads > --- UTILITY ---------- High-capacity Storage Unit Shield Generator > --- WEAPON ----------- Shotgun Shotgun > --- INVENTORY -------- Signal Interpreter Assault Rifle Assault Rifle Light Assault Rifle Shotgun Light Cannon Light Cannon Grenade Launcher Grenade Launcher Grenade Launcher [Rating: 10] Favorites ----------- Power Ion Engine Engine Ion Engine Propulsion Light Treads Treads Light Treads Utility High-capacity Storage Unit Device Shield Generator Storage High-capacity Storage Unit Weapon Shotgun Ballistic Gun Shotgun Launcher Grenade Launcher Build | -11 -10 -10 ------- Run | Yrd Mat Sub Slots Evolved . | . . . Power . | . . . Propulsion . | . . . Utility . | . . . Weapon . | . . . Parts Attached 14 | 5 9 . Power 2 | 1 1 . Engine 2 | 1 1 . Core . | . . . Reactor . | . . . Propulsion 2 | 2 . . Treads 2 | 2 . . Leg . | . . . Wheel . | . . . Hover . | . . . Flight . | . . . Utility 2 | . 2 . Device 1 | . 1 . Storage 1 | . 1 . Processor . | . . . Hackware . | . . . Protection . | . . . Artifact . | . . . Weapon 8 | 2 6 . Energy Gun . | . . . Energy Cannon . | . . . Ballistic Gun 6 | 2 4 . Ballistic Cannon . | . . . Launcher 2 | . 2 . Special Weapon . | . . . Impact Weapon . | . . . Slashing Weapon . | . . . Piercing Weapon . | . . . Special Melee Weapon . | . . . Unidentified Prototypes . | . . . Parts Lost 6 | . 4 2 Power 1 | . 1 . Propulsion 2 | . 1 1 Utility . | . . . Weapon 3 | . 2 1 Highest Loss Streak 2 | . 2 2 To Critical Strikes . | . . . Average Backups 7 | . 7 11 Power . | . . . Propulsion . | . . . Utility . | . . 3 Weapon 6 | . 6 8 Tool/Special . | . . . Unused Backups 8 | . . 8 Power . | . . . Propulsion . | . . . Utility 3 | . . 3 Weapon 5 | . . 5 Tool/Special . | . . . Average Slot Usage (%) 79 | . 79 85 Engine 10 | . 10 14 Treads 22 | . 22 14 Device 5 | . 5 14 Storage 12 | . 12 14 Ballistic Gun 23 | . 23 24 Launcher 3 | . 3 3 Peak Build Rating 10 | 5 10 10 Average Rating 7 | 3 7 9 On Entrance 5 | . 5 10 Naked Turns . | . . . Heaviest Build 53 | 8 53 53 Greatest Support 40 | 40 40 20 Greatest Overweight (x) 2 | 2 2 2 Average Overweight (x) 1 | . 1 2 Largest Inventory Capacity 20 | 5 20 20 Average Capacity 18 | 5 18 20 Most Carried 12 | 2 12 12 Average Carried 7 | . 7 11 Final Capacity 20 | 5 20 20 Final Carried 12 | . 12 11 Class Distribution -------------------- 100% | Mutant Dominant Class ---------------- Mutant | -10/Materials Mutant | -10/Subcaves Resources | -11 -10 -10 ----------- Run | Yrd Mat Sub Matter Collected 764 | 188 576 . Remotely . | . . . Salvage Created 519 | . 511 8 Parts 41 | . 41 . Haulers Intercepted 2 | . 2 . Recyclers Shooed . | . . . Parts Field Recycled . | . . . Retrieved Matter . | . . . Parts Self-Destructed . | . . . Prevented . | . . . Kills | -11 -10 -10 ------- Run | Yrd Mat Sub Combat Hostiles Destroyed 13 | . 12 1 Guns 4 | . 4 . AOE 9 | . 8 1 Classes Destroyed 8 | . 7 1 Worker 7 | . 7 . Builder 2 | . 2 . Hauler 2 | . 2 . Operator 2 | . 2 . Watcher 3 | . 3 . Swarmer 3 | . 3 . Grunt 9 | . 9 . Subdweller 1 | . . 1 Best Kill Streak 4 | . 4 1 Combat Bots Only 3 | . 3 1 Max Kills in Single Turn 3 | . 3 1 Gunslinging . | . . . Exploded 3 | . 3 1 Melee . | . . . Uniques/NPCs Destroyed . | . . . Combat | -11 -10 -10 -------- Run | Yrd Mat Sub Hostile Shots Fired 66 | . 46 20 Missed 19 | . 14 5 Hits 47 | . 32 15 Projectile 47 | . 32 15 AOE 5 | . . 5 Damage Taken 1124 | . 627 497 Core 259 | . 123 136 Absorbed by Shields 87 | . . 87 Core Remaining (%) 100 | 100 . . Volleys Fired 65 | 3 55 7 Largest 2 | 2 2 2 Hottest 53 | 40 50 53 Shots Fired 127 | 6 108 13 Gun 103 | 6 87 10 Cannon . | . . . Launcher 24 | . 21 3 Special . | . . . Kinetic 103 | 6 87 10 Thermal . | . . . Explosive 24 | . 21 3 Electromagnetic . | . . . Robot Hit Streak 12 | 4 12 10 Robot Miss Streak 3 | . 3 1 Penetration Max . | . . . Secondary Targets . | . . . Shots Hit Robots 55 | 4 44 7 Core Hits 52 | 1 48 3 Critical Kills . | . . . Critical Parts Destroyed . | . . . Critical Strikes . | . . . Melee Attacks . | . . . Impact . | . . . Slashing . | . . . Piercing . | . . . Sneak Attacks . | . . . Combat Hostiles . | . . . Follow-up Attacks . | . . . Damage Inflicted 2074 | 40 1709 325 Guns 862 | 40 669 153 Cannons . | . . . Explosions 1212 | . 1040 172 Melee . | . . . Ramming . | . . . Kinetic 862 | 40 669 153 Thermal . | . . . Explosive 1212 | . 1040 172 Electromagnetic . | . . . Impact . | . . . Slashing . | . . . Piercing . | . . . Highest Corruption . | . . . Average Corruption . | . . . Corruption Purged . | . . . Corruption Blocked . | . . . Overload Shots . | . . . Overflow Damage 107 | . 107 . Projectiles . | . . . Explosions 107 | . 107 . Melee . | . . . Knockbacks . | . . . Impact . | . . . Kinetic . | . . . Secondary . | . . . Self-Inflicted Damage 293 | . 261 32 Shots 4 | . 3 1 Rammed . | . . . Targets Rammed . | . . . Kicked . | . . . Crushed . | . . . Highest Temperature 9 | . 9 . Average Temperature 2 | . 2 . Received Heat Transfer 255 | . 198 57 Siege Activations . | . . . Martial Activations . | . . . Shielding Activations . | . . . Robots Disrupted . | . . . Combat Hostiles . | . . . Robots Corrupted . | . . . Combat Hostiles . | . . . Parts Fried . | . . . Impact Corruptions . | . . . Robots Melted . | . . . Combat Hostiles . | . . . Parts Melted . | . . . Heat Transferred . | . . . Parts Sabotaged . | . . . Parts Stolen . | . . . Parts Stripped . | . . . Power Chain Reactions . | . . . Alert | -11 -10 -10 ------- Run | Yrd Mat Sub Maximum Alert Level 1 | . 1 . Low Security (%) 95 | 100 95 . Level 1 4 | . 4 . Level 2 . | . . . Level 3 . | . . . Level 4 . | . . . Level 5 . | . . . High Security . | . . . Max Security . | . . . Peak Influence 225 | . 225 . Initial . | . . . Average 84 | . 87 . Influence Increases 644 | . 644 . Destroy 0b10 Robot/C 240 | . 240 . Destroy 0b10 Robot/NC 80 | . 80 . Destroy Leader 70 | . 70 . Successful Hack 5 | . 5 . Disable Machine 90 | . 90 . Destroy Structure 144 | . 144 . Partial Spotted 15 | . 15 . Influence Decreases 644 | . 616 28 Entered New Map 14 | . . 14 Time Decay 586 | . 576 10 Lost Part 44 | . 40 4 Squads Dispatched 4 | . 4 . Investigation 2 | . 2 . Extermination . | . . . Reinforcement 2 | . 2 . Assault . | . . . Garrison . | . . . Intercept . | . . . Searches Triggered . | . . . Construction Impeded . | . . . Haulers Reinforced . | . . . Active Scanning Responses . | . . . Cargo Convoy Interrupts . | . . . Stealth | -11 -10 -10 --------- Run | Yrd Mat Sub Distress Signals 2 | . 2 . Communications Jammed . | . . . Distress Signals . | . . . Times Spotted 23 | . 18 5 Peak Tracking Total 4 | . 4 3 Tactical Retreats . | . . . Traps | -11 -10 -10 ------- Run | Yrd Mat Sub Traps Triggered 1 | . 1 . Indirectly . | . . . Trap Hack Attempts . | . . . Triggered . | . . . Disarmed . | . . . Reprogrammed . | . . . Reused . | . . . Traps Extracted . | . . . Installed . | . . . Triggered . | . . . Machines | -11 -10 -10 ---------- Run | Yrd Mat Sub Machines Disabled 6 | . 6 . Max in Single Turn 2 | . 2 . Machines Repaired . | . . . Machines Dismantled . | . . . Machines Sabotaged . | . . . Overloaded Fab Kills . | . . . Hacking | -11 -10 -10 --------- Run | Yrd Mat Sub Machines Accessed 1 | . 1 . Terminals 1 | . 1 . Fabricators . | . . . Repair Stations . | . . . Recycling Units . | . . . Scanalyzers . | . . . Garrison Access . | . . . Total Hacks 5 | . 5 . Successful 2 | . 2 . Failed 3 | . 3 . Catastrophic . | . . . Database Lockouts . | . . . Manual . | . . . Terminals 5 | . 5 . Fabricators . | . . . Repair Stations . | . . . Recycling Units . | . . . Scanalyzers . | . . . Garrison Access . | . . . Terminal Hacks 2 | . 2 . Alert Level 1 | . 1 . Hauler Manifests 1 | . 1 . Fabricator Hacks . | . . . Repair Station Hacks . | . . . Recycling Unit Hacks . | . . . Scanalyzer . | . . . Garrison Access Hacks . | . . . Unauthorized Hacks . | . . . Terminals . | . . . Fabricators . | . . . Repair Stations . | . . . Recycling Units . | . . . Scanalyzers . | . . . Garrison Access . | . . . Data Cores Recovered . | . . . Used . | . . . Hacking Detections 1 | . 1 . Full Trace Events 1 | . 1 . Feedback Events . | . . . Feedback Blocked . | . . . Robot Schematics Acquired . | . . . Robots Built . | . . . Authchips . | . . . Time . | . . . Total Robot Build Rating . | . . . Part Schematics Acquired . | . . . Parts Built . | . . . Authchips . | . . . Time . | . . . Total Part Build Rating . | . . . Parts Repaired . | . . . Time . | . . . Parts Recycled . | . . . Recycled Matter . | . . . Retrieved Matter . | . . . Retrieved Components . | . . . Parts Scanalyzed . | . . . Part Schematics Acquired . | . . . Parts Damaged . | . . . Bothacking | -11 -10 -10 ------------ Run | Yrd Mat Sub Used RIF Installer . | . . . Robots Hacked . | . . . Non-combat . | . . . Combat . | . . . Robot Hacks Applied . | . . . Relay Couplers Released . | . . . Fabnet Peak Effective % . | . . . Robots Rewired . | . . . Allies Hacked . | . . . Hacks Repelled . | . . . Allies | -11 -10 -10 -------- Run | Yrd Mat Sub Total Allies . | . . . Largest Group . | . . . Highest-Rated Group . | . . . Highest-Rated Ally . | . . . Total Orders . | . . . Ally Attacks . | . . . Total Damage . | . . . Kills . | . . . Allies Corrupted . | . . . Allies Melted . | . . . Intel | -11 -10 -10 ------- Run | Yrd Mat Sub Active Infowar (turns) . | . . . Robot Analysis Total . | . . . Derelict Logs Recovered . | . . . Drone Launches . | . . . Drone Recoveries . | . . . Exploration | -11 -10 -10 ------------- Run | Yrd Mat Sub Turns Passed 2245 | 64 2147 34 Spaces Moved 763 | 36 723 4 Core 19 | 19 . . Treads 744 | 17 723 4 Legs . | . . . Wheels . | . . . Hover . | . . . Flight . | . . . Fastest Speed 50 | 50 160 320 Average Speed 250 | 129 255 320 Slowest Speed 320 | 160 320 320 Overloaded Moves . | . . . Propulsion Burnouts . | . . . Robots Hopped . | . . . Potential Cave-ins . | . . . Cave-ins Triggered . | . . . Exploration Rate (%) 35 | 5 98 2 Regions Visited 2 Branch Regions 1 Pre-discovered Areas . | . . . Known Exits Taken . | . . . Unknown Exits Taken 2 | 1 1 . Scrap Searched . | . . . Spaces Dug 13 | . 8 5 Terrain Destroyed 177 | . 157 20 Melee . | . . . Projectile . | . . . AOE 177 | . 157 20 Terrain Rammed . | . . . Walls Destroyed . | . . . Machines Disabled . | . . . Actions | -11 -10 -10 --------- Run | Yrd Mat Sub Total 977 | 48 915 14 Wait 110 | . 108 2 Move 761 | 35 722 4 Hop . | . . . Pick Up 23 | 5 18 . Fast Attach . | . . . Attach 13 | 5 7 1 Detach 2 | . 2 . Swap 2 | . 2 . Drop 1 | . 1 . Fire 65 | 3 55 7 Melee . | . . . Ram . | . . . Kick . | . . . Crush . | . . . Escape Stasis . | . . . Rewire . | . . . Trap . | . . . Miscellaneous . | . . . Route ------- -11/Scrapyard -10/Materials (discovered 6 exits: [*Mat x3] / [*Min x2] / [*Sub]) -10/Subcaves History --------- Turn | Location | Event 6 | -11/Scrapyard | Discovered new exit (range 15) 65 | -11/Scrapyard | Entered Materials 221 | -10/Materials | Discovered new exit (range 15) 312 | -10/Materials | Build established: Mutant 331 | -10/Materials | Discovered new exit (range 12) 650 | -10/Materials | Discovered new exit (range 12) 925 | -10/Materials | Discovered new exit (range 16) 1370 | -10/Materials | Discovered new exit (range 14) 2179 | -10/Materials | Discovered new exit (range 9) 2212 | -10/Materials | Entered Subcaves 2213 | -10/Subcaves | Ambushed by Subdwellers from Twisted Machinery 2213 | -10/Subcaves | Approached by a straggling Scientist 2214 | -10/Subcaves | Core integrity fell below 50% 2214 | -10/Subcaves | Ambushed by Subdweller buried in earth 2217 | -10/Subcaves | Core integrity fell below 20% 2245 | -10/Subcaves | Ambushed by Subdweller buried in earth 2245 | -10/Subcaves | Ambushed by Subdweller buried in earth 2246 | -10/Subcaves | Destroyed by 0Z-0SO(R) with Subdweller Shrapnel Launcher Last Messages --------------- all the Subs lurking out here." F1-O3K(R): "THANKSYOU!" 0M-R0W(c): "Hey, let me tag along and I can get us both out of this nasty situation. At least I think I can... The group I got separated from was talking about a shortcut back to the UFD." 0M-R0W(c) destroyed. F1-O3K(R) destroyed. Subatomizers dissect the Wheel. Shotgun destroyed. Subatomizers dissect the Wheel, destroying it. O5-BI5(R) destroyed. 2I-O88(R) destroyed. 0Z-0SO(R) affixes Scrap Shield Fragment to Scrap Shield. The unstable cave ceiling collapses. 8X-HCM(R): "HIDIE!" CC-FIZ(R): "NOSTUCKSUB!" Lgt. Treads destroyed. Map ----- +----------------------------------------------------+ | ?????????????????????????????????????????????????? | | ?????????????????????????????????????????????????? | | ?????????????????????????????????????????????????? | | ?????????????????????????????????????????????????? | | ?????????????????????????????????????????????????? | | ?????????????????????????????????????????????????? | | ?????????????????????????????????????????????????? | | ?????????????????????????????????????????????????? | | ????????????????????????????##???????????????????? | | ???????????????????????????# ???????????????????? | | ??????????????????????????# ????????????????????? | | ????????????????????????## ?????? ????????????? | | ????????????????????????# ????? ?????????????? | | ????????????????????????# ???? ??????????????? | | ???????????????????????## ???# #??????????????? | | ??????????????????????## #??? #??????????????? | | ??????????????????????# ##? ##?????????????? | | ????????????????????### ## #?????????????? | | ????????????????????# #?????????????? | | ????????????????????# ##????????????? | | ????????????????????# & % #????????????? | | ????????????????????# =% #????????????? | | ?????????????????????# * ##????????????????? | | ????????????????????## #????????????????? | | ????????????????????# #????????????????? | | ????????????????????### @ #????????????????? | | ?????????????????????# & ##????????????????? | | ?????????????????????## % ##?????????????????? | | ?????????????????????#; ; ;#?????????????????? | | ?????????????????????## " ????????????????? | | ??????????????????????# ??????????????? | | ??????????????????????# ;" ###?????????????? | | ?????????????????????? ###???????????????? | | ?????????????????????# R []& #?????????????????? | | ?????????????????????# ;#?????????????????? | | ?????????????????????# RR # #?????????????????? | | ?????????????????????# # ?????????????????? | | ?????????????????????# #? # ## #?????????????????? | | ?????????????????????##??#?##?##?????????????????? | | ?????????????????????????????????????????????????? | | ?????????????????????????????????????????????????? | | ?????????????????????????????????????????????????? | | ?????????????????????????????????????????????????? | | ?????????????????????????????????????????????????? | | ?????????????????????????????????????????????????? | | ?????????????????????????????????????????????????? | | ?????????????????????????????????????????????????? | | ?????????????????????????????????????????????????? | | ?????????????????????????????????????????????????? | | ?????????????????????????????????????????????????? | +----------------------------------------------------+ Best States ------------- Heat Dissipation 25 Energy Generation 10 Energy Capacity 250 Matter Stores 230 Matter Capacity 300 Sight Range 16 Terrain Scan Density 10 Evasion (%) 50 Recoil Reduction 2 Item Schematics ----------------- None Robot Schematics ------------------ None Fabricated ------------ Nothing Repaired ---------- Nothing Alien Tech Used ----------------- None Achievements -------------- None Challenges ------------ None Game ------ Seed ShrapnelBoltCharger Manual? 0 Play Time 00:08:38 Cumulative 41.2 hours Start 2025.07.07 @ 10:12:52 End 2025.07.07 @ 10:22:07 Sessions 1 Manual Loads 0 Difficulty Rogue Special Mode None Game No. 194 Rogue 194 Adventurer 0 Explorer 0 Win Type - Total 0 Types 0/0/0/0/0/0/0/0/0/0 Lore% 31 Gallery% 25 Achievement% 22 Wizard Run 0 Options --------- Layout 2 ASCII 0 Keyboard 0 Movement Mouse Keybinds 0 Fullscreen 1 Font 24/Smallcaps Map View 50x44 Zoom Use 0% Tactical HUD 0 Map Filters NONE Filters NONE Steam 1 RUN: 6a8ba73f-f555-4cac-b4c1-2b86ff751436